bitfinex/quotes_BTCUSD_20250421
["timestamp","ask_amount","ask_price","bid_price","bid_amount"]
[1745226891474,0.02132027,87357.0,87342.0,0.0493]
[1745226891664,0.09185741,87391.0,87343.0,0.00228972]
[1745226891665,0.01454085,87369.0,87343.0,0.00228972]
[1745226891873,0.230872,87368.0,87343.0,0.00228972]
[1745226892066,0.11142409,87368.0,87344.0,0.0475]
[1745226892268,0.11142409,87368.0,87345.0,0.00228945]
[1745226893285,0.01066409,87367.0,87344.0,0.0475]
[1745226894050,0.01066409,87367.0,87342.0,0.0493]
[1745226894051,0.00190409,87367.0,87346.0,0.0475]
[1745226894254,0.1008,87368.0,87348.0,0.0475]
[1745226894970,0.10076,87371.0,87348.0,0.0475]
[1745226896901,0.10072,87370.0,87348.0,0.0475]
[1745226898157,0.09426445,87370.0,87348.0,0.0475]
[1745226899719,0.09430445,87370.0,87348.0,0.0475]
[1745226900101,0.09434445,87370.0,87348.0,0.0475]
[1745226900931,8e-05,87370.0,87349.0,0.05158937]
[1745226901155,8e-05,87370.0,87350.0,0.0475]
[1745226901393,8e-05,87370.0,87351.0,0.00228937]
[1745226901770,0.1008,87371.0,87351.0,0.00228937]
[1745226901970,0.04368771,87371.0,87351.0,0.00228937]
[1745226902150,4e-05,87371.0,87351.0,0.00228937]
[1745226902362,0.11526085,87376.0,87351.0,0.00228937]
[1745226902562,0.11944791,87375.0,87352.0,0.0475]
[1745226902905,0.11944791,87375.0,87352.0,0.04978934]
[1745226903635,0.33858002,87386.0,87354.0,0.34]
[1745226903967,0.33858002,87386.0,87353.0,0.11944791]
[1745226903968,0.02132836,87385.0,87358.0,0.0493]
[1745226904172,0.10072,87390.0,87361.0,0.0493]
[1745226904375,0.10072,87390.0,87364.0,0.0475]
[1745226904578,0.10072,87390.0,87366.0,0.0475]
[1745226904775,0.10072,87390.0,87368.0,0.34]
[1745226904978,0.0489,87398.0,87369.0,0.00228882]
[1745226905141,0.14962,87398.0,87370.0,0.3875]
[1745226905340,0.14962,87398.0,87371.0,0.00228879]
[1745226905981,0.09190245,87391.0,87371.0,0.00228879]
[1745226906390,0.09190245,87391.0,87370.0,0.3875]
[1745226907158,4.504e-05,87391.0,87370.0,0.39612763]
[1745226907422,0.14688396,87398.0,87372.0,0.34]
[1745226907622,0.14688396,87398.0,87374.0,0.34]
[1745226907822,0.14688396,87398.0,87376.0,0.34]
[1745226910893,0.13398876,87397.0,87376.0,0.34]
[1745226911099,0.13398876,87397.0,87371.0,0.4294342]
[1745226911646,0.01454085,87395.0,87371.0,0.4294342]
[1745226911859,0.01454085,87393.0,87371.0,0.4294342]
[1745226912053,0.13398876,87393.0,87371.0,0.0894342]
[1745226912291,0.01454085,87391.0,87371.0,0.0894342]
[1745226912466,0.01454085,87389.0,87371.0,0.0894342]
[1745226913299,0.11944791,87390.0,87371.0,0.0894342]
[1745226914310,0.0463,87389.0,87371.0,0.0894342]
[1745226914557,0.11944791,87388.0,87371.0,0.0894342]
[1745226914896,0.06164085,87387.0,87371.0,0.0894342]
[1745226915086,0.01454085,87383.0,87371.0,0.0894342]
[1745226915285,0.01454085,87381.0,87371.0,0.0894342]
[1745226915552,0.11944791,87380.0,87371.0,0.0894342]
[1745226915948,0.11944791,87380.0,87370.0,4.504e-05]
[1745226916937,0.0934,87379.0,87346.0,0.24637843]
[1745226917180,0.0934,87379.0,87347.0,0.11944791]
[1745226917375,0.01454085,87376.0,87347.0,0.11944791]
[1745226917577,0.11944791,87375.0,87347.0,0.11944791]
[1745226917811,0.0471,87374.0,87347.0,0.11944791]
[1745226918058,0.0463,87373.0,87347.0,0.11944791]
[1745226918932,0.0463,87373.0,87348.0,0.34]
[1745226919276,0.04634,87373.0,87348.0,0.34]
[1745226919477,0.04638,87373.0,87348.0,0.34]
[1745226920980,0.046,87372.0,87348.0,0.34]
[1745226921750,0.046,87372.0,87348.0,0.001]
[1745226921751,0.16544791,87372.0,87348.0,0.001]
[1745226921958,0.046,87371.0,87348.0,0.001]
[1745226922285,0.05664886,87371.0,87348.0,0.001]
[1745226923032,0.046,87370.0,87348.0,0.001]
[1745226923495,0.046,87368.0,87348.0,0.001]
[1745226923634,0.16544791,87368.0,87348.0,0.001]
[1745226924586,0.16531219,87368.0,87348.0,0.001]
[1745226924789,0.01064886,87370.0,87349.0,0.25638211]
[1745226924939,0.02128115,87371.0,87349.0,0.25638211]
[1745226925272,0.01064886,87372.0,87349.0,0.25638211]
[1745226925623,0.01064886,87372.0,87349.0,0.0894342]
[1745226926282,0.04638,87373.0,87349.0,0.0894342]
[1745226927725,0.046,87372.0,87349.0,0.0894342]
[1745226928479,0.06728115,87372.0,87349.0,0.0894342]
[1745226928880,0.07793001,87372.0,87349.0,0.0894342]
[1745226929757,0.07793001,87372.0,87350.0,0.00228935]
[1745226930022,0.01064886,87371.0,87350.0,0.00228935]
[1745226930701,0.03193001,87371.0,87350.0,0.00228935]
[1745226930897,0.01064886,87370.0,87350.0,0.00328935]
[1745226931314,0.01064886,87370.0,87350.0,0.001]
[1745226932655,0.03196683,87371.0,87350.0,0.001]
[1745226932855,0.0918,87370.0,87350.0,0.001]
[1745226933001,0.046,87369.0,87350.0,0.001]
[1745226933625,0.009,87350.0,87349.0,0.0894342]
[1745226933813,0.00268,87350.0,87346.0,0.00870567]
[1745226934007,0.01408,87356.0,87346.0,0.00970567]
[1745226934280,0.0458,87370.0,87346.0,0.00970567]
[1745226936759,0.01064886,87369.0,87346.0,0.00970567]
[1745226936960,0.03196683,87369.0,87346.0,0.00970567]
[1745226937427,0.0485,87368.0,87346.0,0.00970567]
[1745226937927,0.0468,87367.0,87346.0,0.00970567]
[1745226938165,0.0485,87366.0,87346.0,0.00970567]
[1745226938520,0.01064886,87365.0,87346.0,0.00970567]
[1745226938936,0.0468,87363.0,87346.0,0.00970567]
[1745226939097,0.0468,87361.0,87346.0,0.00970567]
[1745226939298,0.0485,87360.0,87346.0,0.00970567]
[1745226939631,0.0485,87358.0,87346.0,0.00970567]
[1745226940024,0.16834791,87357.0,87346.0,0.00110346]
[1745226940224,0.0453,87356.0,87346.0,0.00110346]
[1745226940433,0.0942,87354.0,87346.0,0.00110346]
[1745226940665,0.11551797,87354.0,87346.0,0.00110346]
[1745226941075,0.02131797,87353.0,87346.0,0.00110346]
[1745226941503,0.01064886,87352.0,87346.0,0.00110346]
[1745226941734,0.0453,87351.0,87346.0,0.00110346]
[1745226941952,0.13398876,87350.0,87346.0,0.00110346]
[1745226942261,0.01064886,87349.0,87346.0,0.00110346]
[1745226942817,0.03196683,87349.0,87346.0,0.00110346]
[1745226943825,0.02131797,87349.0,87346.0,0.00110346]
[1745226944626,0.02131797,87348.0,87346.0,0.00110346]
[1745226945335,0.03196683,87349.0,87346.0,0.00110346]
[1745226945733,0.02131797,87349.0,87346.0,0.00110346]
[1745226945938,0.16595559,87350.0,87346.0,0.00110346]
[1745226946234,0.03196683,87350.0,87346.0,0.00110346]
[1745226946613,0.0489,87354.0,87346.0,0.00110346]
[1745226950169,0.0499,87354.0,87334.0,0.0481907]
[1745226950379,0.0499,87354.0,87336.0,0.34]
[1745226950508,0.0499,87354.0,87336.0,0.45944791]
[1745226952813,0.0499,87354.0,87336.0,0.46809981]
[1745226956094,0.0499,87354.0,87336.0,0.0086519]
[1745226956497,0.0499,87354.0,87334.0,0.0481907]
[1745226957079,0.0499,87354.0,87334.0,0.05678448]
[1745226957481,0.0461,87353.0,87334.0,0.00859378]
[1745226957804,0.0461,87353.0,87333.0,0.36898292]
[1745226957952,0.0461,87353.0,87333.0,0.36911839]
[1745226959040,0.06742054,87353.0,87333.0,0.36911839]
[1745226959449,0.02132054,87352.0,87333.0,0.36911839]
[1745226959655,0.03198202,87352.0,87333.0,0.36911839]
[1745226960079,0.02132054,87351.0,87333.0,0.36911839]
[1745226960678,0.01066148,87350.0,87333.0,0.36911839]
[1745226960885,0.03198202,87350.0,87333.0,0.37771902]
[1745226961087,0.03198202,87350.0,87334.0,0.01198964]
[1745226961287,0.03198202,87350.0,87333.0,0.37771902]
[1745226961443,0.01066148,87350.0,87333.0,0.37771902]
[1745226961843,0.01066148,87349.0,87333.0,0.37771902]
[1745226962021,0.00373148,87349.0,87333.0,0.37771902]
[1745226962823,0.02132054,87352.0,87333.0,0.37771902]
[1745226963024,0.02132054,87352.0,87333.0,0.03771902]
[1745226964384,0.02132054,87351.0,87333.0,0.03771902]
[1745226964603,0.11944791,87350.0,87333.0,0.03771902]
[1745226965239,0.02132054,87349.0,87333.0,0.03771902]
[1745226965672,0.02132054,87348.0,87333.0,0.03771902]
[1745226966114,0.02132054,87347.0,87333.0,0.03771902]
[1745226966759,0.11944791,87350.0,87333.0,0.03771902]
[1745226966760,0.02132054,87346.0,87333.0,0.03771902]
[1745226967175,0.02132054,87345.0,87333.0,0.03771902]
[1745226967642,0.0932,87344.0,87333.0,0.03771902]
[1745226967862,0.11452054,87344.0,87333.0,0.03771902]
[1745226968287,0.02132054,87343.0,87333.0,0.03771902]
[1745226968703,0.02122574,87342.0,87333.0,0.03771902]
[1745226969227,0.0932,87344.0,87333.0,0.03771902]
[1745226973676,0.21264791,87344.0,87333.0,0.03771902]
[1745226973931,0.13398876,87343.0,87333.0,0.02911839]
[1745226974137,0.0932,87342.0,87333.0,0.02911839]
[1745226974378,0.11944791,87341.0,87333.0,0.02911839]
[1745226974626,0.03202592,87340.0,87333.0,0.02911839]
[1745226974887,0.11944791,87339.0,87333.0,0.02911839]
[1745226975098,0.0473,87337.0,87333.0,0.02911839]
[1745226975718,0.0459,87335.0,87333.0,0.02911839]
[1745226975920,0.16534791,87335.0,87333.0,0.02911839]
[1745226976645,0.0067026,87334.0,87333.0,0.02911839]
[1745226978414,0.00590185,87334.0,87333.0,0.02911839]
[1745226978994,0.00574041,87334.0,87333.0,0.02911839]
[1745226980118,0.00674041,87334.0,87333.0,0.02911839]
[1745226981391,0.02797432,87334.0,87333.0,0.02911839]
[1745226981598,0.00665471,87334.0,87333.0,0.02911839]
[1745226981930,0.001,87334.0,87333.0,0.02911839]
[1745226982352,0.02837,87335.0,87333.0,0.03011839]
[1745226982583,0.02131961,87335.0,87333.0,0.03011839]
[1745226987118,0.02131961,87334.0,87333.0,0.03011839]
[1745226987828,0.02131961,87335.0,87333.0,0.03011839]
[1745226988142,0.02131961,87334.0,87333.0,0.03011839]
[1745226988507,0.02131961,87335.0,87333.0,0.03011839]
[1745226989011,0.02131961,87334.0,87333.0,0.03011839]
[1745226989763,0.20040837,87334.0,87333.0,0.03011839]
[1745226991001,0.29952837,87334.0,87333.0,0.02911839]
[1745226993560,0.34802837,87334.0,87333.0,0.02911839]
[1745226993773,0.38000895,87334.0,87333.0,0.02911839]
[1745226996678,0.41900985,87334.0,87333.0,0.02911839]
[1745226996897,0.01454085,87333.0,87331.0,0.0004226]
[1745226997099,0.26106934,87332.0,87331.0,0.0004226]
[1745226997506,0.28238895,87332.0,87331.0,0.0004226]
[1745226997866,0.29304677,87332.0,87331.0,0.0004226]
[1745226998359,0.52095097,87332.0,87331.0,0.0004226]
[1745226998987,0.56700919,87332.0,87331.0,0.0004226]
[1745226999188,0.52095097,87332.0,87331.0,0.0004226]
[1745226999566,0.52095097,87332.0,87331.0,0.03141138]
[1745226999793,0.52095097,87332.0,87331.0,0.0004226]
[1745227001834,0.52095097,87332.0,87331.0,0.03079037]
[1745227002190,0.60595829,87332.0,87331.0,0.03079037]
[1745227002398,0.83496941,87332.0,87331.0,0.02501717]
[1745227002584,0.83496941,87332.0,87313.0,0.0004228]
[1745227002585,0.01454085,87329.0,87313.0,0.0004228]
[1745227002788,0.26106934,87329.0,87313.0,0.0004228]
[1745227003137,0.28238895,87329.0,87313.0,0.0004228]
[1745227003355,0.40183686,87329.0,87313.0,0.0004228]
[1745227003510,0.41249468,87329.0,87313.0,0.0004228]
[1745227004746,0.41249468,87329.0,87328.0,0.0313705]
[1745227005904,0.52095097,87329.0,87328.0,0.0313705]
[1745227006110,0.57095097,87329.0,87328.0,0.0313705]
[1745227008205,0.57095097,87329.0,87328.0,0.0004227]
[1745227010590,0.57095097,87329.0,87313.0,0.0004228]
[1745227010591,0.01454085,87311.0,87281.0,0.0474]
[1745227010796,0.01454085,87304.0,87301.0,0.00045258]
[1745227010995,0.01454085,87302.0,87301.0,0.00045258]
[1745227011219,0.13398876,87302.0,87301.0,0.00045258]
[1745227011425,0.47821257,87302.0,87301.0,0.00045258]
[1745227011627,0.51008186,87302.0,87301.0,0.00045258]
[1745227011801,0.52073968,87302.0,87301.0,0.00045258]
[1745227013287,0.52077968,87302.0,87301.0,0.00045258]
[1745227013803,0.57285765,87302.0,87301.0,0.00045258]
[1745227014012,0.52077968,87302.0,87301.0,0.00045258]
[1745227014674,0.52081968,87302.0,87301.0,0.00045258]
[1745227016819,0.46763078,87302.0,87301.0,0.00045258]
[1745227016995,0.47067078,87302.0,87293.0,0.0004227]
[1745227017204,0.11944791,87301.0,87293.0,0.00055848]
[1745227019507,0.01454085,87300.0,87293.0,0.00055848]
[1745227019705,0.01454085,87296.0,87293.0,0.00055848]
[1745227019986,0.13398876,87294.0,87293.0,0.00055848]
[1745227022891,0.14464658,87294.0,87293.0,0.00055848]
[1745227023248,0.17646294,87294.0,87293.0,0.00055848]
[1745227024207,0.14464658,87294.0,87120.0,0.15092]
[1745227024457,0.01454085,87292.0,87237.0,0.0266954]
[1745227024661,0.01454085,87290.0,87263.0,0.0047758]
[1745227024869,0.01454085,87288.0,87263.0,0.0047758]
[1745227025047,0.01454085,87286.0,87263.0,0.0047758]
[1745227025288,0.01454085,87284.0,87237.0,0.0266954]
[1745227025422,0.01454085,87282.0,87237.0,0.0266954]
[1745227025631,0.01454085,87280.0,87262.0,0.10114503]
[1745227025851,0.11944791,87279.0,87263.0,0.00472118]
[1745227026013,0.11944791,87279.0,87262.0,0.10114503]
[1745227026216,0.11944791,87279.0,87263.0,0.34]
[1745227026415,0.11944791,87279.0,87264.0,0.00471576]
[1745227028556,0.01454085,87278.0,87264.0,0.00471576]
[1745227028713,0.11944791,87277.0,87264.0,0.00471576]
[1745227028871,0.01454085,87276.0,87264.0,0.00471576]
[1745227029075,0.01454085,87274.0,87264.0,0.00471576]
[1745227029277,0.11944791,87273.0,87264.0,0.00471576]
[1745227029487,0.06194085,87272.0,87264.0,0.00471576]
[1745227029702,0.11944791,87271.0,87264.0,0.00471576]
[1745227030111,0.11944791,87271.0,87264.0,0.00571576]
[1745227030570,0.11786868,87271.0,87264.0,0.00571576]
[1745227030771,0.11786868,87271.0,87264.0,0.001]
[1745227030994,0.09864,87270.0,87265.0,0.00467237]
[1745227031273,0.21808791,87270.0,87265.0,0.00467237]
[1745227031524,0.21808791,87270.0,87264.0,0.001]
[1745227032483,0.21812791,87270.0,87264.0,0.001]
[1745227032892,0.21816791,87270.0,87264.0,0.001]
[1745227034733,0.2158273,87270.0,87262.0,0.04006871]
[1745227035124,0.2153555,87270.0,87263.0,0.0046913]
[1745227035324,0.21523638,87270.0,87263.0,0.0046913]
[1745227036427,0.09578847,87270.0,87263.0,0.0046913]
[1745227038788,0.21523638,87270.0,87263.0,0.0046913]
[1745227039015,0.01065782,87269.0,87263.0,0.0046913]
[1745227039218,0.01065782,87269.0,87262.0,0.04006871]
[1745227039452,0.01065782,87269.0,87264.0,0.00473452]
[1745227039645,0.01065782,87269.0,87262.0,0.04006871]
[1745227039847,0.01065782,87269.0,87265.0,0.00473452]
[1745227039999,0.01065782,87268.0,87262.0,0.04006871]
[1745227040203,0.01065782,87268.0,87266.0,0.00473452]
[1745227040399,0.01065782,87268.0,87262.0,0.04006871]
[1745227040801,0.02131247,87267.0,87263.0,0.00476303]
[1745227041001,0.03197029,87267.0,87263.0,0.00476303]
[1745227041207,0.01065782,87267.0,87263.0,0.00476303]
[1745227041832,0.11995247,87266.0,87263.0,0.00476303]
[1745227042197,0.01065782,87265.0,87262.0,0.04006871]
[1745227043721,0.01065782,87264.0,87262.0,0.04006871]
[1745227045085,0.01065782,87263.0,87262.0,0.04006871]
[1745227045685,0.00175782,87263.0,87262.0,0.04006871]
[1745227045882,8e-05,87270.0,87262.0,0.04006871]
[1745227046084,0.09864,87269.0,87263.0,0.00478298]
[1745227046243,8e-05,87270.0,87264.0,0.0499]
[1745227046244,0.09864,87268.0,87264.0,0.0499]
[1745227046449,0.06448142,87268.0,87265.0,0.0492]
[1745227046642,0.03415859,87268.0,87266.0,0.00477214]
[1745227046846,8e-05,87270.0,87266.0,0.00477214]
[1745227047265,0.09868,87279.0,87266.0,0.00577214]
[1745227047553,4e-05,87279.0,87266.0,0.00577214]
[1745227047829,0.06317508,87279.0,87267.0,0.0022915]
[1745227048802,0.06317508,87279.0,87266.0,0.00577214]
[1745227049282,0.06417508,87279.0,87266.0,0.00577214]
[1745227050305,0.06417508,87279.0,87267.0,0.00472727]
[1745227050505,0.06417508,87279.0,87267.0,0.00049912]
[1745227050934,0.06317508,87279.0,87267.0,0.00049912]
[1745227051310,0.06517508,87279.0,87267.0,0.00049912]
[1745227051464,0.06517508,87279.0,87264.0,0.0499]
[1745227051465,0.002,87279.0,87264.0,0.0499]
[1745227051669,0.002,87279.0,87262.0,0.04006871]
[1745227051670,0.09864,87278.0,87262.0,0.04006871]
[1745227053037,0.11944791,87277.0,87262.0,0.04006871]
[1745227055283,0.14077959,87277.0,87262.0,0.04006871]
[1745227055480,0.02133168,87276.0,87262.0,0.04006871]
[1745227055781,0.0453,87275.0,87262.0,0.04006871]
[1745227058437,0.0106655,87274.0,87262.0,0.04006871]
[1745227059299,0.0106655,87273.0,87262.0,0.04006871]
[1745227059497,0.16804791,87272.0,87262.0,0.04006871]
[1745227060404,0.0106655,87271.0,87262.0,0.04006871]
[1745227060654,0.13011341,87271.0,87262.0,0.04006871]
[1745227060820,0.0988,87270.0,87262.0,0.04006871]
[1745227061024,0.21824791,87270.0,87262.0,0.04006871]
[1745227061229,0.0106655,87269.0,87262.0,0.04006871]
[1745227062176,0.0988,87268.0,87262.0,0.04006871]
[1745227062345,0.1094655,87268.0,87262.0,0.04006871]
[1745227063207,0.01848107,87267.0,87262.0,0.04006871]
[1745227063629,0.0106655,87266.0,87262.0,0.04006871]
[1745227064375,0.0106655,87265.0,87262.0,0.04006871]
[1745227065381,0.0106655,87264.0,87262.0,0.04006871]
[1745227066367,0.0106655,87263.0,87262.0,0.04006871]
[1745227067815,0.0107055,87263.0,87262.0,0.04006871]
[1745227068018,0.0107455,87263.0,87262.0,0.04006871]
[1745227072179,0.1095455,87263.0,87262.0,0.04006871]
[1745227073626,0.0107455,87263.0,87262.0,0.04006871]
[1745227075621,0.02132989,87265.0,87262.0,0.04006871]
[1745227082491,8e-05,87268.0,87262.0,0.04006871]
[1745227082700,0.00208,87268.0,87262.0,0.04006871]
[1745227085712,0.00212,87268.0,87262.0,0.04006871]
[1745227086113,0.0988,87272.0,87262.0,0.04006871]
[1745227086471,4e-05,87268.0,87262.0,0.04006871]
[1745227088049,0.02134847,87267.0,87262.0,0.04006871]
[1745227088658,4e-05,87268.0,87262.0,0.04006871]
[1745227088659,4e-05,87268.0,87262.0,0.04436052]
[1745227088992,4e-05,87268.0,87263.0,0.0479]
[1745227089198,8e-05,87268.0,87263.0,0.0479]
[1745227089716,0.09848,87275.0,87264.0,0.00229159]
[1745227090079,0.09848,87275.0,87266.0,0.34]
[1745227090902,0.01454085,87297.0,87266.0,0.34]
[1745227091093,0.21792791,87285.0,87277.0,0.34]
[1745227091494,0.21792791,87285.0,87277.0,0.33996]
[1745227091795,0.31552791,87285.0,87277.0,0.33996]
[1745227092212,0.01454085,87282.0,87262.0,0.04306871]
[1745227092439,0.26782791,87285.0,87262.0,0.04306871]
[1745227092440,0.01454085,87272.0,87262.0,0.04306871]
[1745227092643,0.01454085,87270.0,87262.0,0.04306871]
[1745227092867,0.11944791,87269.0,87262.0,0.04306871]
[1745227095225,0.11948791,87269.0,87262.0,0.04306871]
[1745227095638,0.11952791,87269.0,87262.0,0.04306871]
[1745227096044,0.11956791,87269.0,87262.0,0.04306871]
[1745227096286,0.09848,87268.0,87262.0,0.04306871]
[1745227096501,0.11944791,87267.0,87262.0,0.04306871]
[1745227100757,0.09848,87268.0,87262.0,0.04306871]
[1745227101061,0.21792791,87268.0,87262.0,0.04306871]
[1745227101194,0.02135808,87267.0,87262.0,0.04306871]
[1745227101404,0.03201712,87267.0,87262.0,0.04306871]
[1745227101768,0.09848,87266.0,87262.0,0.04306871]
[1745227103564,0.07522,87266.0,87262.0,0.04306871]
[1745227104326,0.03205712,87267.0,87262.0,0.04306871]
[1745227104728,0.02131808,87266.0,87262.0,0.04306871]
[1745227105150,0.01065904,87265.0,87262.0,0.04306871]
[1745227106669,0.00300904,87264.0,87262.0,0.04306871]
[1745227108307,8e-05,87267.0,87262.0,0.04306871]
[1745227110815,8e-05,87267.0,87262.0,0.04206871]
[1745227111018,8e-05,87267.0,87262.0,0.04006871]
[1745227111233,8e-05,87267.0,87262.0,0.04206871]
[1745227114867,8e-05,87267.0,87258.0,0.00847414]
[1745227115205,8e-05,87267.0,87252.0,0.0806931]
[1745227115348,8e-05,87267.0,87252.0,0.08075534]
[1745227116189,0.0496,87266.0,87252.0,0.03355534]
[1745227117514,0.0496,87266.0,87252.0,0.04197615]
[1745227118236,0.02132665,87265.0,87252.0,0.04197615]
[1745227119150,0.0496,87266.0,87252.0,0.04197615]
[1745227119151,0.02132665,87264.0,87252.0,0.04197615]
[1745227119305,0.02132665,87264.0,87252.0,0.05150297]
[1745227119507,0.0496,87266.0,87252.0,0.04197615]
[1745227119508,0.02132665,87265.0,87252.0,0.04197615]
[1745227119806,0.01066273,87264.0,87252.0,0.04197615]
[1745227120015,0.03198938,87264.0,87252.0,0.04197615]
[1745227120464,0.02132665,87263.0,87252.0,0.04197615]
[1745227120623,0.01066273,87262.0,87252.0,0.04197615]
[1745227122230,0.01066273,87261.0,87252.0,0.04197615]
[1745227123280,0.01066273,87260.0,87252.0,0.04197615]
[1745227123781,0.01066273,87260.0,87252.0,0.03197615]
[1745227123980,0.01066273,87260.0,87252.0,6.224e-05]
[1745227124130,0.01066273,87259.0,87252.0,6.224e-05]
[1745227124332,0.00343273,87259.0,87252.0,6.224e-05]
[1745227125417,0.09852,87261.0,87252.0,6.224e-05]
[1745227126037,0.09852,87261.0,87252.0,0.03264476]
[1745227126277,0.09852,87261.0,87252.0,0.00870659]
[1745227129376,0.09852,87261.0,87252.0,0.04161299]
[1745227130055,0.0496,87266.0,87252.0,0.04161299]
[1745227130056,0.01747028,87266.0,87252.0,0.04161299]
[1745227130253,0.000925,87302.0,87254.0,0.049]
[1745227130480,0.09852,87276.0,87254.0,0.049]
[1745227130720,0.07523,87276.0,87255.0,0.00229181]
[1745227131221,0.07523,87276.0,87259.0,0.001]
[1745227131399,0.09852,87276.0,87259.0,0.001]
[1745227131601,0.19037741,87277.0,87259.0,0.001]
[1745227132006,0.19037741,87277.0,87260.0,0.049]
[1745227132215,0.1567408,87277.0,87260.0,0.049]
[1745227135912,0.0582208,87277.0,87260.0,0.049]
[1745227136115,0.1567008,87277.0,87260.0,0.049]
[1745227136814,0.0141208,87277.0,87260.0,0.049]
[1745227137012,0.09848,87278.0,87261.0,0.00229156]
[1745227137148,0.01066098,87277.0,87261.0,0.00229156]
[1745227137351,0.07475,87281.0,87262.0,0.049]
[1745227137563,0.07475,87281.0,87263.0,0.00229156]
[1745227138420,0.07475,87281.0,87262.0,0.049]
[1745227144639,0.11944791,87280.0,87262.0,0.049]
[1745227144754,0.01454085,87279.0,87256.0,0.049]
[1745227144971,0.0979,87275.0,87256.0,0.049]
[1745227145190,0.11944791,87274.0,87256.0,0.049]
[1745227146506,0.0492,87275.0,87257.0,0.00229188]
[1745227146709,0.09848,87274.0,87257.0,0.00229188]
[1745227147526,0.09848,87274.0,87256.0,0.049]
[1745227149406,0.11944791,87273.0,87256.0,0.049]
[1745227149572,0.11944791,87273.0,87252.0,0.04161299]
[1745227149767,0.01065693,87272.0,87252.0,0.04161299]
[1745227150787,0.01065693,87271.0,87252.0,0.04161299]
[1745227152025,0.01065693,87270.0,87252.0,0.04161299]
[1745227153468,0.0982,87271.0,87252.0,0.04161299]
[1745227153469,0.01065693,87269.0,87252.0,0.04161299]
[1745227155027,0.01065693,87268.0,87252.0,0.04161299]
[1745227155367,0.0105072,87268.0,87252.0,0.04161299]
[1745227156596,0.0982,87271.0,87252.0,0.04161299]
[1745227156792,0.11944791,87270.0,87252.0,0.04161299]
[1745227157781,4e-05,87268.0,87252.0,0.04161299]
[1745227157986,0.11948791,87268.0,87252.0,0.04161299]
[1745227158140,0.11944791,87267.0,87252.0,0.04161299]
[1745227158909,0.14076285,87267.0,87252.0,0.04161299]
[1745227160272,0.14080285,87267.0,87252.0,0.04161299]
[1745227160455,0.02131494,87266.0,87252.0,0.04161299]
[1745227160652,0.14076285,87266.0,87252.0,0.04161299]
[1745227160882,0.11944791,87265.0,87252.0,0.04161299]
[1745227161091,0.14076285,87265.0,87252.0,0.04161299]
[1745227161599,0.11944791,87265.0,87252.0,0.04161299]
[1745227166528,0.11944791,87265.0,87246.0,0.23110239]
[1745227166732,0.12174001,87265.0,87246.0,0.23123813]
[1745227166938,0.12174001,87265.0,87247.0,0.0022921]
[1745227167541,0.12174001,87265.0,87246.0,0.27162807]
[1745227168391,0.01065721,87264.0,87246.0,0.27162807]
[1745227168555,0.0022921,87263.0,87246.0,0.04052568]
[1745227169266,0.01065721,87262.0,87246.0,0.04052568]
[1745227169478,0.0022921,87261.0,87246.0,0.04052568]
[1745227169644,0.0022921,87261.0,87246.0,0.08872568]
[1745227170087,0.01294931,87261.0,87246.0,0.08872568]
[1745227170731,0.0935,87260.0,87246.0,0.04052568]
[1745227171026,0.0022921,87259.0,87246.0,0.04052568]
[1745227171226,0.0022921,87259.0,87246.0,0.04921505]
[1745227171589,0.01065721,87258.0,87246.0,0.04921505]
[1745227171798,0.0022921,87257.0,87246.0,0.04921505]
[1745227172956,0.01065721,87256.0,87246.0,0.04921505]
[1745227173113,0.0022921,87255.0,87246.0,0.04921505]
[1745227174242,0.0022921,87259.0,87246.0,0.04921505]
[1745227180568,0.0022921,87259.0,87257.0,0.01146039]
[1745227181027,0.0022921,87259.0,87231.0,0.34]
[1745227181231,0.00239041,87259.0,87232.0,0.11944791]
[1745227181825,0.00239041,87259.0,87232.0,0.16061302]
[1745227184063,0.00239041,87259.0,87233.0,0.00229219]
[1745227184301,0.00239041,87259.0,87235.0,0.34]
[1745227184524,0.00239041,87259.0,87236.0,0.00229219]
[1745227184924,0.00239041,87259.0,87235.0,0.34]
[1745227185666,0.00239041,87259.0,87236.0,0.00229219]
[1745227186123,0.01066157,87258.0,87236.0,0.00229219]
[1745227186764,0.01066157,87258.0,87235.0,0.34]
[1745227186984,0.00550002,87257.0,87235.0,0.34]
[1745227187155,0.00419686,87257.0,87235.0,0.34]
[1745227187359,0.00419686,87257.0,87236.0,0.00229219]
[1745227187856,9.831e-05,87259.0,87235.0,0.34]
[1745227191720,0.0468,87258.0,87235.0,0.34]
[1745227192645,0.0468,87258.0,87236.0,0.00229219]
[1745227193409,0.0468,87258.0,87235.0,0.34]
[1745227193812,0.0468,87258.0,87236.0,0.00229219]
[1745227194196,0.0468,87258.0,87235.0,0.34]
[1745227194437,0.0468,87258.0,87236.0,0.00229219]
[1745227194644,0.0468,87258.0,87235.0,0.34]
[1745227198003,0.0468,87258.0,87233.0,0.00849267]
[1745227198245,0.0468,87258.0,87234.0,0.34]
[1745227199277,0.05746952,87257.0,87234.0,0.34]
[1745227199483,0.0469,87256.0,87233.0,0.00868573]
[1745227199693,0.0468,87255.0,87233.0,0.00868573]
[1745227199903,0.0468,87255.0,87232.0,0.04122742]
[1745227199904,0.05746952,87255.0,87229.0,0.3404228]
[1745227200043,0.05746952,87255.0,87231.0,0.34]
[1745227200460,0.0468,87254.0,87231.0,0.34]
[1745227201104,0.01066952,87253.0,87229.0,0.38224922]
[1745227201321,0.0468,87252.0,87229.0,0.38224922]
[1745227201979,0.0468,87250.0,87229.0,0.38224922]
[1745227202483,0.0468,87250.0,87229.0,0.39084775]
[1745227203350,4e-05,87253.0,87229.0,0.39084775]
[1745227203351,0.0468,87247.0,87229.0,0.39084775]
[1745227203549,0.0468,87247.0,87229.0,0.05084775]
[1745227203889,0.01066952,87246.0,87229.0,0.05084775]
[1745227204323,0.0468,87243.0,87229.0,0.05084775]
[1745227204510,0.0468,87242.0,87229.0,0.05084775]
[1745227205077,0.0468,87240.0,87229.0,0.05084775]
[1745227205943,0.047,87239.0,87229.0,0.05084775]
[1745227207399,0.04704,87239.0,87229.0,0.04224922]
[1745227209622,0.04708,87239.0,87229.0,0.04224922]
[1745227210031,0.03722,87239.0,87229.0,0.04224922]
[1745227210443,0.03726,87239.0,87229.0,0.04224922]
[1745227210641,0.02238,87239.0,87229.0,0.04224922]
[1745227211092,0.021358,87239.0,87229.0,0.04224922]
[1745227211622,0.01520672,87239.0,87215.0,0.34]
[1745227211752,0.01520672,87239.0,87216.0,0.00229268]
[1745227211954,0.01520672,87239.0,87216.0,0.00860486]
[1745227212156,0.01520672,87239.0,87215.0,0.45944791]